fUST/lending_fUST_20250511
["ID","MTS","AMOUNT","RATE_DAILY","PERIOD"]
[360623988,1746906682492,-1278.01,0.00011506,2]
[360623989,1746906682502,-400.0,0.00011506,2]
[360623990,1746906682512,-416.85,0.00011506,2]
[360623991,1746906682522,-427.37,0.00011506,2]
[360623992,1746906682531,-1347.82,0.00011506,2]
[360623993,1746906682541,-793.93,0.00011506,2]
[360623994,1746906682553,-789.56,0.00011506,2]
[360623995,1746906682563,-922.84,0.00011506,2]
[360623996,1746906682573,-400.0,0.00011506,2]
[360623997,1746906682582,-400.0,0.00011506,2]
[360623998,1746906682591,-445.82,0.00011506,2]
[360623999,1746906682601,-400.0,0.00011506,2]
[360624000,1746906682611,-1409.07,0.00011506,2]
[360624001,1746906682620,-1926.65,0.00011506,2]
[360624002,1746906682631,-8310.69,0.00011506,2]
[360624003,1746906682642,-2326.13,0.00011506,2]
[360624004,1746906682651,-400.0,0.00011506,2]
[360624005,1746906682661,-2542.91,0.00011506,2]
[360624006,1746906682670,-2015.99,0.00011506,2]
[360624007,1746906682680,-3912.6,0.00011506,2]
[360624008,1746906682690,-400.0,0.00011506,2]
[360624009,1746906682700,-447.46,0.00011506,2]
[360624010,1746906682710,-2641.95,0.00011506,2]
[360624011,1746906682719,-2579.44,0.00011506,2]
[360624012,1746906682729,-705.43,0.00011506,2]
[360624013,1746906682739,-512.02,0.00011506,2]
[360624014,1746906682748,-661.8,0.00011506,2]
[360624015,1746906682759,-557.25,0.00011506,2]
[360624016,1746906682769,-2704.17,0.00011506,2]
[360624017,1746906682779,-30214.48381671,0.00011583,2]
[360624018,1746906682789,-504.97,0.00011779,2]
[360624019,1746906682799,-400.0,0.00011779,2]
[360624020,1746906682808,-640.39,0.00011779,2]
[360624021,1746906682818,-400.0,0.00011779,2]
[360624022,1746906682827,-539.65,0.00011779,2]
[360624023,1746906682838,-400.0,0.00011779,2]
[360624024,1746906682847,-400.0,0.00011779,2]
[360624025,1746906682857,-699.78,0.00011779,2]
[360624026,1746906682867,-400.0,0.00011779,2]
[360624027,1746906682876,-435.97,0.00011779,2]
[360624028,1746906682885,-1746.81,0.00011779,2]
[360624029,1746906682895,-807.94,0.00011779,2]
[360624030,1746906682904,-1100.05,0.00011779,2]
[360624031,1746906682913,-403.69,0.00011779,2]
[360624032,1746906682923,-692.72,0.00011779,2]
[360624033,1746906682933,-888.64,0.00011779,2]
[360624034,1746906682943,-1160.64,0.00011779,2]
[360624035,1746906682959,-400.0,0.00011779,2]
[360624036,1746906682968,-400.0,0.00011779,2]
[360624037,1746906682978,-400.0,0.00011779,2]
[360624038,1746906682987,-523.62,0.00011779,2]
[360624039,1746906682998,-633.73,0.00011779,2]
[360624040,1746906683007,-400.0,0.00011779,2]
[360624041,1746906683018,-460.15,0.00011779,2]
[360624042,1746906683029,-671.11,0.00011779,2]
[360624043,1746906683039,-557.78,0.00011779,2]
[360624044,1746906683048,-903.04,0.00011779,2]
[360624045,1746906683058,-400.0,0.00011779,2]
[360624046,1746906683068,-738.49,0.00011779,2]
[360624047,1746906683078,-828.14,0.00011779,2]
[360624048,1746906683088,-2047.93,0.00011779,2]
[360624049,1746906683098,-974.46,0.00011779,2]
[360624050,1746906683108,-863.31,0.00011779,2]
[360624051,1746906683118,-400.0,0.00011779,2]
[360624052,1746906683128,-629.14,0.00011779,2]
[360624053,1746906683137,-484.23,0.00011779,2]
[360624054,1746906683146,-739.18,0.00011779,2]
[360624055,1746906683156,-922.29,0.00011779,2]
[360624056,1746906683165,-2351.73,0.00011779,2]
[360624057,1746906683175,-2022.22,0.00011779,2]
[360624058,1746906683184,-1891.95,0.00011779,2]
[360624059,1746906683194,-970.32,0.00011779,2]
[360624060,1746906683205,-1140.17,0.00011779,2]
[360624061,1746906683214,-436.7,0.00011779,2]
[360624062,1746906683223,-1347.82,0.00011779,2]
[360624063,1746906683234,-793.93,0.00011779,2]
[360624064,1746906683243,-789.56,0.00011779,2]
[360624065,1746906683253,-400.0,0.00011779,2]
[360624066,1746906683263,-400.0,0.00011779,2]
[360624067,1746906683273,-1926.65,0.00011779,2]
[360624068,1746906683282,-2542.91,0.00011779,2]
[360624069,1746906683292,-447.46,0.00011779,2]
[360624070,1746906683302,-705.43,0.00011779,2]
[360624071,1746906683311,-512.02,0.00011779,2]
[360624072,1746906683321,-661.8,0.00011779,2]
[360624073,1746906683332,-400.0,0.0001178,2]
[360624074,1746906683341,-457.42,0.0001178,2]
[360624075,1746906683351,-525.79,0.0001178,2]
[360624076,1746906683361,-400.0,0.0001178,2]
[360624077,1746906683371,-199.13060025,0.0001178,2]
[360624078,1746906683380,-434.68,0.0001178,2]
[360624079,1746906683389,-400.0,0.0001178,2]
[360624080,1746906683399,-478.83,0.0001178,2]
[360624081,1746906683409,-832.17,0.0001178,2]
[360624082,1746906683419,-400.0,0.0001178,2]
[360624083,1746906683428,-400.0,0.0001178,2]
[360624084,1746906683438,-824.8,0.0001178,2]
[360624085,1746906683448,-400.0,0.0001178,2]
[360624086,1746906683459,-739.55,0.0001178,2]
[360624087,1746906683469,-400.0,0.0001178,2]
[360624088,1746906683478,-1274.07,0.0001178,2]
[360624089,1746906683491,-954.18,0.0001178,2]
[360624090,1746906683500,-985.97,0.0001178,2]
[360624091,1746906683511,-400.0,0.0001178,2]
[360624092,1746906683520,-453.4,0.0001178,2]
[360624093,1746906683529,-400.0,0.0001178,2]
[360624094,1746906683538,-400.0,0.0001178,2]
[360624095,1746906683549,-446.99,0.0001178,2]
[360624096,1746906683563,-722.59,0.0001178,2]
[360624097,1746906683572,-400.0,0.0001178,2]
[360624098,1746906683581,-400.0,0.0001178,2]
[360624099,1746906683591,-400.0,0.0001178,2]
[360624100,1746906683602,-400.0,0.0001178,2]
[360624101,1746906683612,-522.88,0.0001178,2]
[360624102,1746906683622,-427.35,0.0001178,2]
[360624103,1746906683632,-562.01,0.0001178,2]
[360624104,1746906683642,-460.57913684,0.0001178,2]
[360624105,1746906683651,-1026.92,0.0001178,2]
[360624106,1746906683661,-400.0,0.0001178,2]
[360624107,1746906683671,-400.0,0.0001178,2]
[360624108,1746906683680,-1419.13,0.0001178,2]
[360624109,1746906683690,-489.84,0.0001178,2]
[360624110,1746906683699,-953.05,0.0001178,2]
[360624111,1746906683709,-695.87,0.0001178,2]
[360624112,1746906683719,-1151.25,0.0001178,2]
[360624113,1746906683728,-2025.76,0.0001178,2]
[360624114,1746906683738,-1951.67,0.0001178,2]
[360624115,1746906683748,-400.0,0.0001178,2]
[360624116,1746906683761,-781.59,0.0001178,2]
[360624117,1746906683771,-615.73,0.0001178,2]
[360624118,1746906683780,-400.0,0.0001178,2]
[360624119,1746906683789,-667.76,0.0001178,2]
[360624120,1746906683923,-400.0,0.0001178,2]
[360624121,1746906683933,-1882.63,0.0001178,2]
[360624122,1746906683943,-400.0,0.0001178,2]
[360624123,1746906683952,-494.13,0.0001178,2]
[360624124,1746906683962,-438.08,0.0001178,2]
[360624125,1746906683973,-665.28,0.0001178,2]
[360624126,1746906683983,-643.06,0.0001178,2]
[360624127,1746906683992,-1142.12,0.0001178,2]
[360624128,1746906684004,-1235.06,0.0001178,2]
[360624129,1746906684013,-4110.99,0.0001178,2]
[360624130,1746906684023,-512.06,0.0001178,2]
[360624131,1746906684033,-408.04,0.0001178,2]
[360624132,1746906684042,-866.6,0.0001178,2]
[360624133,1746906684053,-1197.32,0.0001178,2]
[360624134,1746906684062,-4277.51,0.0001178,2]
[360624135,1746906684071,-294.14036423,0.0001178,2]
[360624136,1746906684081,-318.125685,0.0001178,2]
[360624137,1746906684090,-852.33,0.0001178,2]
[360624138,1746906684099,-400.0,0.0001178,2]
[360624139,1746906684109,-1309.03,0.0001178,2]
[360624140,1746906684118,-1077.29,0.0001178,2]
[360624141,1746906684128,-7785.86,0.0001178,2]
[360624142,1746906684137,-798.74,0.0001178,2]
[360624143,1746906684147,-2347.64,0.0001178,2]
[360624144,1746906684157,-722.49,0.0001178,2]
[360624145,1746906684167,-400.0,0.0001178,2]
[360624146,1746906684176,-400.0,0.0001178,2]
[360624147,1746906684186,-400.0,0.0001178,2]
[360624148,1746906684195,-1540.79,0.0001178,2]
[360624149,1746906684204,-415.52,0.0001178,2]
[360624150,1746906684215,-1202.77,0.0001178,2]
[360624151,1746906684224,-8125.42,0.0001178,2]
[360624152,1746906684234,-455.9,0.0001178,2]
[360624153,1746906684243,-728.41,0.0001178,2]
[360624154,1746906684254,-4052.84,0.0001178,2]
[360624155,1746906684263,-1722.78,0.0001178,2]
[360624156,1746906684273,-400.0,0.0001178,2]
[360624157,1746906684283,-961.45,0.0001178,2]
[360624158,1746906684294,-499.04,0.0001178,2]
[360624159,1746906684304,-400.0,0.0001178,2]
[360624160,1746906684314,-513.69,0.0001178,2]
[360624161,1746906684323,-1620.11,0.0001178,2]
[360624162,1746906684332,-1522.1,0.0001178,2]
[360624163,1746906684342,-855.77,0.0001178,2]
[360624164,1746906684352,-3617.99,0.0001178,2]
[360624165,1746906684362,-1039.2,0.0001178,2]
[360624166,1746906684371,-1521.55,0.0001178,2]
[360624167,1746906684381,-518.45215913,0.0001178,2]
[360624168,1746906684392,-483.77,0.0001178,2]
[360624169,1746906684402,-913.03,0.0001178,2]
[360624170,1746906684412,-794.3,0.0001178,2]
[360624171,1746906684422,-720.62,0.0001178,2]
[360624172,1746906684433,-400.0,0.0001178,2]
[360624173,1746906684443,-1418.47,0.0001178,2]
[360624174,1746906684454,-400.0,0.0001178,2]
[360624175,1746906684464,-480.68,0.0001178,2]
[360624176,1746906684474,-400.0,0.0001178,2]
[360624177,1746906684483,-619.24,0.0001178,2]
[360624178,1746906684493,-1863.48,0.0001178,2]
[360624179,1746906684503,-400.0,0.0001178,2]
[360624180,1746906684513,-1742.97,0.0001178,2]
[360624181,1746906684522,-499.88,0.0001178,2]
[360624182,1746906684533,-416.65388573,0.0001178,2]
[360624183,1746906684542,-1689.1,0.0001178,2]
[360624184,1746906684554,-1471.66,0.0001178,2]
[360624185,1746906684565,-400.0,0.0001178,2]
[360624186,1746906684575,-1375.35,0.0001178,2]
[360624187,1746906684584,-2043.72779729,0.0001178,2]
[360624188,1746906685074,-398.06800959,8.05e-05,2]
[360624189,1746906685084,-400.0,8.219e-05,2]
[360624190,1746906685094,-400.0,8.493e-05,2]
[360624191,1746906685104,-400.0,8.767e-05,2]
[360624192,1746906685114,-400.0,9.041e-05,2]
[360624193,1746906685124,-400.0,9.315e-05,2]
[360624194,1746906685134,-400.0,9.589e-05,2]
[360624195,1746906685144,-400.0,9.863e-05,2]
[360624196,1746906685154,-400.0,0.00010136,2]
[360624197,1746906685164,-400.0,0.0001041,2]
[360624198,1746906685174,-400.0,0.00010684,2]
[360624199,1746906685183,-400.0,0.00010958,2]
[360624200,1746906685194,-400.0,0.00011232,2]
[360624201,1746906685203,-2389.25220271,0.0001178,2]
[360624202,1746906685213,-719.53,0.0001178,2]
[360624203,1746906685223,-400.0,0.0001178,2]
[360624204,1746906685233,-1921.61,0.0001178,2]
[360624205,1746906685243,-881.79,0.0001178,2]
[360624206,1746906685253,-893.91,0.0001178,2]
[360624207,1746906685262,-3693.92,0.0001178,2]
[360624208,1746906685271,-676.37,0.0001178,2]
[360624209,1746906685281,-191.10621613,0.0001178,2]
[360624210,1746906685290,-6166.4,0.0001178,2]
[360624211,1746906685299,-1278.01,0.0001178,2]
[360624212,1746906685309,-400.0,0.0001178,2]
[360624213,1746906685319,-416.85,0.0001178,2]
[360624214,1746906685328,-427.37,0.0001178,2]
[360624215,1746906685338,-922.84,0.0001178,2]
[360624216,1746906685348,-441.49598404,0.0001178,2]
[360624217,1746906685357,-445.82,0.0001178,2]
[360624218,1746906685367,-1409.07,0.0001178,2]
[360624219,1746906685377,-8310.69,0.0001178,2]
[360624220,1746906685387,-2326.13,0.0001178,2]
[360624221,1746906685396,-400.0,0.0001178,2]
[360624222,1746906685405,-2015.99,0.0001178,2]
[360624223,1746906685415,-3912.6,0.0001178,2]
[360624224,1746906685425,-400.0,0.0001178,2]
[360624225,1746906685434,-2641.95,0.0001178,2]
[360624226,1746906685444,-2579.44,0.0001178,2]
[360624227,1746906685454,-557.25,0.0001178,2]
[360624228,1746906685463,-2704.17,0.0001178,2]
[360624229,1746906685472,-2000.0,0.00011781,2]
[360624230,1746906685482,-200.0,0.00011824,2]
[360624231,1746906685491,-200.0,0.00011824,2]
[360624232,1746906685501,-464.574,0.0001195,2]
[360624233,1746906685511,-17196.65608682,0.00012,2]
[360624234,1746906880437,300.0,7.967e-05,2]
[360624235,1746906895332,300.0,7.967e-05,2]
[360624313,1746906910655,300.0,7.966e-05,2]
[360624314,1746906926355,300.0,7.966e-05,2]
[360624316,1746906941694,191.54974511,7.966e-05,2]
[360624350,1746907132739,160.0,7.965e-05,2]
[360624351,1746907151294,529.82786991,7.946e-05,2]
[360624380,1746907688194,398.06800959,7.959e-05,2]
[360624464,1746907832543,-214.0,8.037e-05,2]
[360624465,1746907832554,-300.0,8.037e-05,2]
[360624466,1746907832563,-1200.0,8.037e-05,2]
[360624467,1746907832572,-300.0,8.037e-05,2]
[360624468,1746907832582,-421.20752052,8.037e-05,2]
[360624469,1746907832591,-633.47911104,8.038e-05,2]
[360624470,1746907832601,-560.873732,8.038e-05,2]
[360624471,1746907832611,-500.0,8.038e-05,2]
[360624472,1746907832621,-5638.97687575,8.04e-05,2]
[360624473,1746907832631,-2287.82,8.218e-05,2]
[360624474,1746907832640,-400.0,8.219e-05,2]
[360624475,1746907832650,-410.82,8.219e-05,2]
[360624476,1746907832659,-400.0,8.219e-05,2]
[360624477,1746907832668,-400.0,8.219e-05,2]
[360624478,1746907832677,-400.0,8.219e-05,2]
[360624479,1746907832687,-427.88,8.219e-05,2]
[360624480,1746907832696,-400.0,8.219e-05,2]
[360624481,1746907832705,-400.0,8.219e-05,2]
[360624482,1746907832715,-400.0,8.219e-05,2]
[360624483,1746907832725,-533.77980026,8.219e-05,2]
[360624484,1746907832734,-158.50383898,8.219e-05,2]
[360624485,1746907832743,-400.0,8.219e-05,2]
[360624486,1746907832753,-371.44415136,8.219e-05,2]
[360624487,1746907832762,-400.0,8.219e-05,2]
[360624488,1746907832772,-124.18549135,8.219e-05,2]
[360624489,1746907832785,-660.24450865,8.219e-05,2]
[360624490,1746907832794,-400.0,8.219e-05,2]
[360624491,1746907832804,-400.0,8.219e-05,2]
[360624492,1746907832814,-400.0,8.219e-05,2]
[360624493,1746907832823,-400.0,8.219e-05,2]
[360624494,1746907832833,-400.0,8.219e-05,2]
[360624495,1746907832842,-400.0,8.219e-05,2]
[360624496,1746907832851,-211.20993727,8.219e-05,2]
[360624497,1746907832860,-516.1148014,8.219e-05,2]
[360624498,1746907832870,-400.0,8.219e-05,2]
[360624499,1746907832880,-400.0,8.219e-05,2]
[360624500,1746907832889,-400.0,8.219e-05,2]
[360624501,1746907832899,-729.1,8.219e-05,2]
[360624502,1746907832908,-363.74858446,8.219e-05,2]
[360624503,1746907832923,-36.25141554,8.219e-05,2]
[360624504,1746907832935,-339.94147216,8.219e-05,2]
[360624505,1746907832944,-350.91508092,8.219e-05,2]
[360624506,1746907832974,-49.08491908,8.219e-05,2]
[360624507,1746907832983,-213.51865074,8.219e-05,2]
[360624508,1746907832995,-186.48134926,8.219e-05,2]
[360624509,1746907833007,-400.0,8.219e-05,2]
[360624510,1746907833017,-400.0,8.219e-05,2]
[360624511,1746907833026,-197.01865074,8.219e-05,2]
[360624513,1746907833038,-202.98134926,8.219e-05,2]
[360624515,1746907833047,-163.54814143,8.219e-05,2]
[360624562,1746907838213,-427.76185857,8.219e-05,2]
[360624564,1746907838222,-72.37754218,8.219e-05,2]
[360624573,1746907838291,-327.62245782,8.219e-05,2]
[360624575,1746907838301,-400.0,8.219e-05,2]
[360624577,1746907838310,-400.0,8.219e-05,2]
[360624579,1746907838319,-400.0,8.219e-05,2]
[360624581,1746907838329,-400.0,8.219e-05,2]
[360624583,1746907838338,-400.0,8.219e-05,2]
[360624585,1746907838348,-844.06,8.219e-05,2]
[360624587,1746907838358,-400.0,8.219e-05,2]
[360624589,1746907838367,-400.0,8.219e-05,2]
[360624591,1746907838376,-400.0,8.219e-05,2]
[360624593,1746907838386,-111.54015527,8.219e-05,2]
[360624595,1746907838397,-288.45984473,8.219e-05,2]
[360624598,1746907838407,-400.0,8.219e-05,2]
[360624600,1746907838416,-400.0,8.219e-05,2]
[360624602,1746907838425,-157.03638474,8.219e-05,2]
[360624604,1746907838437,-242.96361526,8.219e-05,2]
[360624606,1746907838447,-400.0,8.219e-05,2]
[360624608,1746907838456,-400.0,8.219e-05,2]
[360624610,1746907838466,-400.0,8.219e-05,2]
[360624612,1746907838475,-400.0,8.219e-05,2]
[360624615,1746907838485,-400.0,8.219e-05,2]
[360624616,1746907838494,-400.0,8.219e-05,2]
[360624619,1746907838504,-400.0,8.219e-05,2]
[360624621,1746907838513,-417.31,8.219e-05,2]
[360624623,1746907838522,-813.2,8.219e-05,2]
[360624625,1746907838532,-400.0,8.219e-05,2]
[360624627,1746907838541,-400.0,8.219e-05,2]
[360624629,1746907838551,-87.02638474,8.219e-05,2]
[360624817,1746907840491,-312.97361526,8.219e-05,2]
[360624819,1746907840501,-400.0,8.219e-05,2]
[360624821,1746907840510,-400.0,8.219e-05,2]
[360624823,1746907840520,-400.0,8.219e-05,2]
[360624825,1746907840530,-400.0,8.219e-05,2]
[360624827,1746907840539,-479.69,8.219e-05,2]
[360624829,1746907840549,-162.33638474,8.219e-05,2]
[360624832,1746907840565,-237.66361526,8.219e-05,2]
[360624834,1746907840575,-400.0,8.219e-05,2]
[360624836,1746907840584,-492.55,8.219e-05,2]
[360624838,1746907840594,-400.0,8.219e-05,2]
[360624840,1746907840603,-407.39,8.219e-05,2]
[360624842,1746907840613,-504.19,8.219e-05,2]
[360624844,1746907840622,-400.0,8.219e-05,2]
[360624846,1746907840631,-400.0,8.219e-05,2]
[360624848,1746907840640,-1782.3,8.219e-05,2]
[360624850,1746907840650,-746.75,8.219e-05,2]
[360624852,1746907840659,-400.0,8.219e-05,2]
[360624854,1746907840669,-400.0,8.219e-05,2]
[360624856,1746907840678,-735.43,8.219e-05,2]
[360624858,1746907840687,-400.0,8.219e-05,2]
[360624860,1746907840696,-407.29,8.219e-05,2]
[360624861,1746907840705,-400.0,8.219e-05,2]
[360624864,1746907840715,-400.0,8.219e-05,2]
[360624866,1746907840724,-400.0,8.219e-05,2]
[360624868,1746907840734,-360.29772264,8.219e-05,2]
[360624869,1746907840745,-400.0,8.219e-05,2]
[360624872,1746907840757,-400.0,8.219e-05,2]
[360624873,1746907840768,-400.0,8.219e-05,2]
[360624876,1746907840778,-548.63,8.219e-05,2]
[360624878,1746907840787,-400.0,8.219e-05,2]
[360624880,1746907840797,-349.54962335,8.219e-05,2]
[360624882,1746907840806,-403.79518038,8.219e-05,2]
[360624884,1746907840816,-641.99,8.219e-05,2]
[360624886,1746907840825,-401.33088213,8.219e-05,2]
[360624888,1746907840834,-448.87,8.219e-05,2]
[360624890,1746907840843,-400.0,8.219e-05,2]
[360624892,1746907840852,-400.0,8.219e-05,2]
[360624894,1746907840861,-789.65,8.219e-05,2]
[360624896,1746907840871,-400.0,8.219e-05,2]
[360624898,1746907840880,-400.0,8.219e-05,2]
[360624900,1746907840892,-400.0,8.219e-05,2]
[360624902,1746907840901,-2754.92,8.219e-05,2]
[360624904,1746907840910,-400.0,8.219e-05,2]
[360624906,1746907840920,-400.0,8.219e-05,2]
[360624908,1746907840932,-400.0,8.219e-05,2]
[360624910,1746907840942,-634.2,8.219e-05,2]
[360624912,1746907840952,-400.0,8.219e-05,2]
[360624914,1746907840961,-978.19,8.219e-05,2]
[360624916,1746907840973,-400.0,8.219e-05,2]
[360624918,1746907840982,-400.0,8.219e-05,2]
[360624920,1746907840991,-400.0,8.219e-05,2]
[360624922,1746907841001,-400.0,8.219e-05,2]
[360624924,1746907841010,-400.0,8.219e-05,2]
[360624926,1746907841019,-1712.91,8.219e-05,2]
[360624929,1746907841029,-400.0,8.219e-05,2]
[360624931,1746907841038,-400.0,8.219e-05,2]
[360624933,1746907841047,-223.75505364,8.219e-05,2]
[360624935,1746907841060,-367.27494636,8.219e-05,2]
[360624937,1746907841069,-1688.69,8.219e-05,2]
[360624939,1746907841078,-400.0,8.219e-05,2]
[360624941,1746907841087,-400.0,8.219e-05,2]
[360624943,1746907841097,-241.0923104,8.219e-05,2]
[360625059,1746907843873,-222.2076896,8.219e-05,2]
[360625060,1746907843883,-430.56,8.219e-05,2]
[360625061,1746907843892,-712.38,8.219e-05,2]
[360625062,1746907843902,-776.45,8.219e-05,2]
[360625064,1746907843911,-938.64,8.219e-05,2]
[360625067,1746907843921,-517.82,8.219e-05,2]
[360625068,1746907843934,-400.0,8.219e-05,2]
[360625071,1746907843944,-400.0,8.219e-05,2]
[360625073,1746907843955,-400.0,8.219e-05,2]
[360625075,1746907843964,-400.0,8.219e-05,2]
[360625077,1746907843974,-17.12732776,8.219e-05,2]
[360625330,1746907846532,-1595.42267224,8.219e-05,2]
[360625332,1746907846541,-400.0,8.219e-05,2]
[360625334,1746907846551,-400.0,8.219e-05,2]
[360625336,1746907846560,-712.12,8.219e-05,2]
[360625339,1746907846569,-400.0,8.219e-05,2]
[360625341,1746907846579,-400.0,8.219e-05,2]
[360625343,1746907846588,-409.71,8.219e-05,2]
[360625346,1746907846598,-400.0,8.219e-05,2]
[360625347,1746907846607,-3323.48,8.219e-05,2]
[360625350,1746907846617,-670.02,8.219e-05,2]
[360625352,1746907846627,-2549.06,8.219e-05,2]
[360625354,1746907846636,-400.0,8.219e-05,2]
[360625356,1746907846647,-400.0,8.219e-05,2]
[360625358,1746907846656,-701.34,8.219e-05,2]
[360625359,1746907846665,-400.0,8.219e-05,2]
[360625362,1746907846675,-400.0,8.219e-05,2]
[360625364,1746907846684,-947.25,8.219e-05,2]
[360625365,1746907846693,-400.0,8.219e-05,2]
[360625368,1746907846702,-1148.3,8.219e-05,2]
[360625370,1746907846712,-665.43,8.219e-05,2]
[360625372,1746907846723,-400.0,8.219e-05,2]
[360625374,1746907846735,-400.0,8.219e-05,2]
[360625376,1746907846745,-400.0,8.219e-05,2]
[360625378,1746907846755,-5510.09384299,8.219e-05,2]
[360626951,1746907920414,266.0203103,7.354e-05,2]
[360626980,1746909032405,-300.0,8.023e-05,2]
[360626982,1746909032415,-146.61247371,8.023e-05,2]
[360626983,1746909032461,-153.38752629,8.023e-05,2]
[360626984,1746909032470,-1200.0,8.023e-05,2]
[360626986,1746909032480,-289.08250602,8.024e-05,2]
[360626988,1746909032490,-493.87715391,8.024e-05,2]
[360626989,1746909032500,-152.4554076,8.024e-05,2]
[360626991,1746909032509,-499.99999999,8.024e-05,2]
[360626992,1746909032519,-500.0,8.024e-05,2]
[360626994,1746909032528,-500.0,8.024e-05,2]
[360626997,1746909032538,-500.0,8.024e-05,2]
[360627000,1746909032553,-500.0,8.024e-05,2]
[360627002,1746909032563,-500.0,8.024e-05,2]
[360627005,1746909032573,-500.0,8.024e-05,2]
[360627006,1746909032582,-500.0,8.024e-05,2]
[360627007,1746909032592,-500.0,8.024e-05,2]
[360627008,1746909032601,-500.0,8.024e-05,2]
[360627010,1746909032611,-500.0,8.024e-05,2]
[360627011,1746909032622,-500.0,8.024e-05,2]
[360627012,1746909032632,-460.17424509,8.024e-05,2]
[360627015,1746909033121,-39.82575491,8.024e-05,2]
[360627017,1746909033130,-500.0,8.024e-05,2]
[360627019,1746909033141,-312.21837475,8.024e-05,2]
[360627021,1746909033150,-500.0,8.024e-05,2]
[360627022,1746909033160,-500.0,8.024e-05,2]
[360627023,1746909033170,-500.0,8.024e-05,2]
[360627024,1746909033179,-500.0,8.024e-05,2]
[360627025,1746909033189,-500.0,8.024e-05,2]
[360627026,1746909033198,-406.23151538,8.024e-05,2]
[360627027,1746909033208,-500.0,8.024e-05,2]
[360627028,1746909033218,-500.0,8.024e-05,2]
[360627029,1746909033227,-500.0,8.024e-05,2]
[360627030,1746909033237,-500.0,8.024e-05,2]
[360627031,1746909033246,-347.18745367,8.024e-05,2]
[360627032,1746909033255,-500.0,8.024e-05,2]
[360627033,1746909033265,-500.0,8.024e-05,2]
[360627034,1746909033274,-500.0,8.024e-05,2]
[360627035,1746909033284,-500.0,8.024e-05,2]
[360627036,1746909033297,-500.0,8.024e-05,2]
[360627037,1746909033306,-500.0,8.024e-05,2]
[360627038,1746909033315,-500.0,8.024e-05,2]
[360627039,1746909033325,-603.12213064,8.024e-05,2]
[360627040,1746909033335,-500.0,8.024e-05,2]
[360627041,1746909033344,-362.33086431,8.024e-05,2]
[360627042,1746909033354,-50000.0,8.025e-05,2]
[360627043,1746909033363,-300.0,8.026e-05,2]
[360627044,1746909033374,-288516.89464489,8.119e-05,2]
[360627045,1746909033383,-500.0,8.219e-05,2]
[360627046,1746909033393,-400.0,8.219e-05,2]
[360627047,1746909033402,-400.0,8.219e-05,2]
[360627048,1746909033412,-400.0,8.219e-05,2]
[360627049,1746909033421,-400.0,8.219e-05,2]
[360627050,1746909033431,-400.0,8.219e-05,2]
[360627051,1746909033441,-400.0,8.219e-05,2]
[360627052,1746909033450,-400.0,8.219e-05,2]
[360627053,1746909033461,-400.0,8.219e-05,2]
[360627054,1746909033470,-400.0,8.219e-05,2]
[360627055,1746909033479,-400.0,8.219e-05,2]
[360627056,1746909033489,-400.0,8.219e-05,2]
[360627057,1746909033498,-400.0,8.219e-05,2]
[360627058,1746909033508,-400.0,8.219e-05,2]
[360627059,1746909033518,-400.0,8.219e-05,2]
[360627060,1746909033528,-400.0,8.219e-05,2]
[360627061,1746909033538,-400.0,8.219e-05,2]
[360627062,1746909033548,-400.0,8.219e-05,2]
[360627063,1746909033558,-400.0,8.219e-05,2]
[360627064,1746909033567,-400.0,8.219e-05,2]